lending/lending_fUSD_20250508
["ID","MTS","AMOUNT","RATE_DAILY","PERIOD"]
[360262514,1746675043759,-450.0,0.00019999,2]
[360262515,1746675043768,-470.0,0.00019999,2]
[360262516,1746675043778,-213.03,0.00019999,2]
[360262517,1746675043787,-450.0,0.00019999,2]
[360262518,1746675043797,-450.0,0.00019999,2]
[360262519,1746675043807,-461.70308747,0.00019999,2]
[360262520,1746675043817,-450.0,0.00019999,2]
[360262521,1746675043826,-450.0,0.00019999,2]
[360262522,1746675043836,-450.0,0.00019999,2]
[360262523,1746675043845,-450.0,0.00019999,2]
[360262524,1746675043855,-557.92,0.00019999,2]
[360262525,1746675043864,-468.77820668,0.00019999,2]
[360262526,1746675043874,-450.0,0.00019999,2]
[360262527,1746675043884,-431.28170763,0.00019999,2]
[360262528,1746675043893,-450.0,0.00019999,2]
[360262529,1746675043904,-519.03,0.00019999,2]
[360262530,1746675043914,-450.0,0.00019999,2]
[360262531,1746675043924,-588.70241836,0.00019999,2]
[360262532,1746675043934,-453.43863924,0.00019999,2]
[360262533,1746675043944,-450.0,0.00019999,2]
[360262534,1746675043955,-450.0,0.00019999,2]
[360262535,1746675043966,-450.0,0.00019999,2]
[360262536,1746675043976,-463.34797235,0.00019999,2]
[360262537,1746675043987,-450.0,0.00019999,2]
[360262538,1746675043996,-450.0,0.00019999,2]
[360262539,1746675044008,-450.0,0.00019999,2]
[360262540,1746675044019,-450.0,0.00019999,2]
[360262541,1746675044030,-450.0,0.00019999,2]
[360262542,1746675044042,-490.0,0.00019999,2]
[360262543,1746675044054,-493.39900063,0.00019999,2]
[360262544,1746675044064,-450.0,0.00019999,2]
[360262545,1746675044074,-425.0,0.00019999,2]
[360262546,1746675044083,-481.23767263,0.00019999,2]
[360262547,1746675044094,-459.19406974,0.00019999,2]
[360262548,1746675044103,-450.0,0.00019999,2]
[360262549,1746675044114,-450.0,0.00019999,2]
[360262550,1746675044126,-340.20410739,0.00019999,2]
[360262551,1746675044136,-450.0,0.00019999,2]
[360262552,1746675044147,-450.0,0.00019999,2]
[360262553,1746675044359,-415.69616779,0.00019999,2]
[360262554,1746675044369,-468.91339903,0.00019999,2]
[360262555,1746675044379,-490.0,0.00019999,2]
[360262556,1746675044389,-450.0,0.00019999,2]
[360262557,1746675044398,-450.0,0.00019999,2]
[360262558,1746675044408,-450.0,0.00019999,2]
[360262559,1746675044418,-450.0,0.00019999,2]
[360262560,1746675044428,-464.47,0.00019999,2]
[360262561,1746675044438,-450.0,0.00019999,2]
[360262562,1746675044448,-490.0,0.00019999,2]
[360262563,1746675044457,-552.53185318,0.00019999,2]
[360262564,1746675044467,-450.0,0.00019999,2]
[360262565,1746675044479,-450.0,0.00019999,2]
[360262566,1746675044488,-543.2,0.00019999,2]
[360262567,1746675044498,-450.0,0.00019999,2]
[360262568,1746675044508,-450.0,0.00019999,2]
[360262569,1746675044518,-499.92242367,0.00019999,2]
[360262570,1746675044528,-450.0,0.00019999,2]
[360262571,1746675044537,-509.82,0.00019999,2]
[360262572,1746675044547,-450.0,0.00019999,2]
[360262573,1746675044562,-450.0,0.00019999,2]
[360262574,1746675044571,-450.0,0.00019999,2]
[360262575,1746675044581,-450.0,0.00019999,2]
[360262576,1746675044591,-450.0,0.00019999,2]
[360262577,1746675044600,-450.0,0.00019999,2]
[360262578,1746675044610,-469.00686972,0.00019999,2]
[360262579,1746675044620,-489.8,0.00019999,2]
[360262580,1746675044630,-479.62881398,0.00019999,2]
[360262581,1746675044640,-215.95800537,0.00019999,2]
[360262582,1746675044650,-519.31841966,0.00019999,2]
[360262583,1746675044660,-450.0,0.00019999,2]
[360262584,1746675044670,-450.0,0.00019999,2]
[360262585,1746675044680,-470.0,0.00019999,2]
[360262586,1746675044689,-450.0,0.00019999,2]
[360262587,1746675044699,-576.49,0.00019999,2]
[360262588,1746675044708,-450.0,0.00019999,2]
[360262589,1746675044718,-209.91223658,0.00019999,2]
[360262590,1746675044728,-469.65,0.00019999,2]
[360262591,1746675044738,-450.0,0.00019999,2]
[360262592,1746675044747,-450.0,0.00019999,2]
[360262593,1746675044756,-450.0,0.00019999,2]
[360262594,1746675044766,-450.0,0.00019999,2]
[360262595,1746675044775,-450.0,0.00019999,2]
[360262596,1746675044785,-450.0,0.00019999,2]
[360262597,1746675044794,-450.0,0.00019999,2]
[360262598,1746675044803,-450.0,0.00019999,2]
[360262599,1746675044814,-431.77334996,0.00019999,2]
[360262600,1746675044823,-388.1,0.00019999,2]
[360262601,1746675044833,-450.0,0.00019999,2]
[360262602,1746675044843,-491.32026937,0.00019999,2]
[360262603,1746675044852,-497.30748789,0.00019999,2]
[360262604,1746675044862,-450.0,0.00019999,2]
[360262605,1746675044871,-529.47,0.00019999,2]
[360262606,1746675044882,-450.0,0.00019999,2]
[360262607,1746675044892,-450.0,0.00019999,2]
[360262608,1746675044902,-450.0,0.00019999,2]
[360262609,1746675044912,-450.0,0.00019999,2]
[360262610,1746675044922,-450.0,0.00019999,2]
[360262611,1746675044931,-224.93638067,0.00019999,2]
[360262612,1746675044941,-428.47688154,0.00019999,2]
[360262613,1746675044951,-450.0,0.00019999,2]
[360262614,1746675044961,-450.0,0.00019999,2]
[360262615,1746675044971,-477.3589215,0.00019999,2]
[360262616,1746675044980,-450.0,0.00019999,2]
[360262617,1746675044995,-450.0,0.00019999,2]
[360262618,1746675045005,-450.0,0.00019999,2]
[360262619,1746675045014,-450.0,0.00019999,2]
[360262620,1746675045024,-389.22044254,0.00019999,2]
[360262621,1746675045033,-155.448872,0.00019999,2]
[360262622,1746675045042,-170.48226082,0.00019999,2]
[360262623,1746675045052,-450.0,0.00019999,2]
[360262624,1746675045062,-450.0,0.00019999,2]
[360262625,1746675045071,-450.0,0.00019999,2]
[360262626,1746675045081,-450.0,0.00019999,2]
[360262627,1746675045090,-485.34677431,0.00019999,2]
[360262628,1746675045100,-450.0,0.00019999,2]
[360262629,1746675045109,-450.0,0.00019999,2]
[360262630,1746675045119,-298.5,0.00019999,2]
[360262631,1746675045130,-412.81,0.00019999,2]
[360262632,1746675045140,-476.94601029,0.00019999,2]
[360262633,1746675045150,-450.0,0.00019999,2]
[360262634,1746675045159,-459.29235506,0.00019999,2]
[360262635,1746675045170,-450.0,0.00019999,2]
[360262636,1746675045180,-450.0,0.00019999,2]
[360262637,1746675045190,-450.0,0.00019999,2]
[360262638,1746675045200,-450.0,0.00019999,2]
[360262639,1746675045210,-450.0,0.00019999,2]
[360262640,1746675045220,-450.0,0.00019999,2]
[360262641,1746675045230,-450.0,0.00019999,2]
[360262642,1746675045239,-450.0,0.00019999,2]
[360262643,1746675045249,-450.0,0.00019999,2]
[360262644,1746675045259,-450.0,0.00019999,2]
[360262645,1746675045269,-450.0,0.00019999,2]
[360262646,1746675045278,-450.0,0.00019999,2]
[360262647,1746675045288,-548.25,0.00019999,2]
[360262648,1746675045298,-375.50462373,0.00019999,2]
[360262649,1746675045308,-157.133102,0.00019999,2]
[360262650,1746675045318,-450.0,0.00019999,2]
[360262651,1746675045328,-450.0,0.00019999,2]
[360262652,1746675045340,-450.0,0.00019999,2]
[360262653,1746675045350,-450.0,0.00019999,2]
[360262654,1746675045360,-450.0,0.00019999,2]
[360262655,1746675045370,-535.45,0.00019999,2]
[360262656,1746675045380,-450.0,0.00019999,2]
[360262657,1746675045390,-450.0,0.00019999,2]
[360262658,1746675045400,-450.0,0.00019999,2]
[360262659,1746675045410,-450.0,0.00019999,2]
[360262660,1746675045420,-450.0,0.00019999,2]
[360262661,1746675045430,-450.0,0.00019999,2]
[360262662,1746675045452,-450.0,0.00019999,2]
[360262663,1746675045463,-450.0,0.00019999,2]
[360262664,1746675045475,-450.0,0.00019999,2]
[360262665,1746675045487,-380.46,0.00019999,2]
[360262666,1746675045497,-450.0,0.00019999,2]
[360262667,1746675045508,-157.799078,0.00019999,2]
[360262668,1746675045519,-238.73400319,0.00019999,2]
[360262669,1746675045530,-152.191207,0.00019999,2]
[360262670,1746675045541,-500.0,0.00019999,2]
[360262671,1746675045553,-212.47834533,0.00019999,2]
[360262672,1746675045563,-500.0,0.00019999,2]
[360262673,1746675045574,-500.0,0.00019999,2]
[360262674,1746675045585,-155.73548898,0.00019999,2]
[360262675,1746675045595,-4136.691,0.00019999,2]
[360262676,1746675045605,-5935.0,0.00019999,2]
[360262677,1746675045615,-1192.0,0.00019999,2]
[360262678,1746675045625,-16598.30742924,0.0002,2]
[360262679,1746675045635,-177047.97577748,0.0002,2]
[360262686,1746675047436,-0.06706936,0.0002,2]
[360262687,1746675047485,-2313.22529256,0.0002,2]
[360262688,1746675047578,-195.25863762,0.000199,3]
[360262689,1746675047588,-450.0,0.00019997,2]
[360262690,1746675047597,-12701.26823026,0.0002,2]
[360262691,1746675047609,-643.34,0.0002,2]
[360262692,1746675047694,-450.0,0.00019997,2]
[360262693,1746675047703,-160.771902,0.00019999,2]
[360262694,1746675047713,-10855.25604968,0.0002,2]
[360262695,1746675047793,-5999.999985,0.0002,2]
[360262696,1746675047805,-364.337631,0.0002,2]
[360262697,1746675047816,-1353.25038425,0.0002,2]
[360262698,1746675047827,-54675.34593826,0.0002,2]
[360262699,1746675047843,-4582.999998,0.0002,2]
[360262700,1746675047854,-3370.84019466,0.0002,2]
[360262701,1746675047865,-6255.68089231,0.0002,2]
[360262702,1746675052845,1123.0,0.000194,2]
[360262704,1746675074662,1000.0,0.0003,30]
[360262707,1746675133886,500.0,0.00029589,30]
[360262708,1746675134220,500.0,0.00029863,35]
[360262711,1746675208817,3349.3,0.0003,30]
[360262717,1746675350139,414.18210181,0.0002,12]
[360262719,1746675443287,1500.0,0.0003,30]
[360262720,1746675453583,356.45,0.00017174,2]
[360262721,1746675453820,356.45,0.00019438,2]
[360262725,1746675499291,2000.0,0.0003,30]
[360262726,1746675515675,2000.0,0.0003,30]
[360262727,1746675525914,320.251724,0.0003,30]
[360262733,1746675671653,150.0,0.0003,30]
[360262734,1746675712686,500.0,0.00029589,30]
[360262735,1746675712963,500.0,0.00029863,35]
[360262736,1746675756985,500.0,0.00029589,30]
[360262737,1746675757241,500.0,0.00029863,30]
[360262739,1746675776786,153.44699658,0.00029589,30]
[360262740,1746675793160,200.0,0.00030136,120]
[360262742,1746675815896,12112.73,0.00018925,2]
[360262743,1746675818310,367.0,0.00030136,120]
[360262744,1746675947654,153.16456769,0.00018,2]
[360262745,1746675958039,1000.0,0.00018936,2]
[360262746,1746676018511,250.0,0.00017,2]
[360262747,1746676019602,300.0,0.00019,2]
[360262749,1746676199932,-160.49539076,0.00019506,2]
[360262750,1746676210669,-30.96091786,0.00019506,2]
[360262761,1746676232146,-250.0,0.0001953,2]
[360262762,1746676232157,-183.7662443,0.00019553,2]
[360262763,1746676232171,-16.2337557,0.00019553,2]
[360262764,1746676232181,-250.0,0.00019573,2]
[360262765,1746676232191,-300.0,0.00019599,2]
[360262776,1746676232461,-272.8977938,0.00019599,2]
[360262779,1746676232477,-927.1022062,0.00019599,2]
[360262781,1746676232488,-300.0,0.00019599,2]
[360262783,1746676232497,-1123.0,0.000196,2]
[360262785,1746676232507,-3153.32753422,0.000196,2]
[360262792,1746676232570,-28461.06145899,0.000196,2]
[360262800,1746676232640,-425.18333004,0.000196,2]
[360262802,1746676232652,-389.89892477,0.000196,2]
[360262804,1746676232664,-27453.89271871,0.000196,2]
[360262806,1746676232675,-200.0,0.00019609,2]
[360262808,1746676232685,-434.82885209,0.000197,2]
[360262810,1746676232696,-165.53,0.00019704,2]
[360262813,1746676232707,-1123.0,0.000198,2]
[360262815,1746676232718,-628.0,0.00019836,2]
[360262817,1746676232728,-207.4,0.00019861,2]
[360262819,1746676232738,-460.03033264,0.00019873,2]
[360262820,1746676232747,-596.9165218,0.00019873,2]
[360262822,1746676232757,-500.0,0.00019873,2]
[360262824,1746676232766,-504.04939422,0.00019873,2]
[360262826,1746676232776,-285.9770449,0.00019873,2]
[360262828,1746676232786,-500.0,0.00019873,2]
[360262830,1746676232796,-500.0,0.00019873,2]
[360262832,1746676232806,-500.0,0.00019873,2]
[360262834,1746676232816,-500.0,0.00019873,2]
[360262836,1746676232827,-217.64239135,0.00019885,2]
[360262838,1746676232841,-31698.1072,0.00019886,2]
[360262840,1746676232851,-151.0,0.00019888,2]
[360262842,1746676232862,-357.1487,0.00019898,2]
[360262844,1746676232872,-632.72160414,0.00019899,2]
[360262846,1746676232883,-528.2521304,0.00019899,2]
[360262848,1746676232893,-450.0,0.00019899,2]
[360262850,1746676232903,-450.0,0.00019899,2]
[360262853,1746676232915,-450.0,0.00019899,2]
[360262854,1746676232925,-450.0,0.00019899,2]
[360262856,1746676232935,-450.0,0.00019899,2]
[360262858,1746676232945,-450.0,0.00019899,2]
[360262860,1746676232955,-528.25213038,0.00019899,2]
[360262862,1746676232964,-528.25213038,0.00019899,2]
[360262864,1746676232979,-528.25213038,0.00019899,2]
[360262866,1746676232989,-528.25213038,0.00019899,2]
[360262868,1746676232998,-528.25213038,0.000199,2]
[360262870,1746676233007,-528.25213038,0.000199,2]
[360262872,1746676233017,-528.25213038,0.000199,2]
[360262874,1746676233027,-528.25213038,0.000199,2]
[360262876,1746676233037,-171576.3523,0.000199,2]
[360262878,1746676233046,-2193.59029014,0.000199,2]
[360262880,1746676233056,-273.8141235,0.000199,2]
[360262883,1746676233066,-528.25213038,0.000199,2]
[360262884,1746676233077,-855.70818926,0.000199,2]
[360262885,1746676233088,-217.64239135,0.000199,2]
[360262887,1746676233099,-997.18485411,0.000199,2]
[360262889,1746676233108,-653.39014806,0.000199,2]
[360262891,1746676233118,-1254.7898125,0.000199,2]
[360262893,1746676233128,-1821.75660964,0.000199,2]
[360262895,1746676233138,-301.26884701,0.000199,2]
[360262897,1746676233148,-189.11654,0.00019966,2]
[360262899,1746676233158,-189.11654,0.00019966,2]
[360262901,1746676233168,-500.42946015,0.00019973,2]
[360262903,1746676233178,-500.0,0.00019973,2]
[360262905,1746676233188,-183.53593538,0.00019973,2]
[360262906,1746676233198,-500.0,0.00019973,2]
[360262909,1746676233208,-500.0,0.00019973,2]
[360262910,1746676233222,-500.0,0.00019973,2]
[360262911,1746676233232,-500.0,0.00019973,2]
[360262912,1746676233243,-500.69159405,0.00019973,2]
[360262913,1746676233254,-501.83980564,0.00019973,2]
[360262914,1746676233264,-500.0,0.00019973,2]
[360262915,1746676233274,-500.70462909,0.00019973,2]
[360262916,1746676233286,-500.28014357,0.00019973,2]
[360262917,1746676233297,-500.0,0.00019973,2]
[360262918,1746676233309,-404.49361863,0.00019973,2]
[360262919,1746676233321,-500.0,0.00019973,2]
[360262920,1746676233332,-1000.0,0.00019973,2]
[360262921,1746676233342,-1000.0,0.00019973,2]
[360262922,1746676233354,-1000.0,0.00019973,2]
[360262923,1746676233366,-1000.0,0.00019973,2]
[360262924,1746676233377,-1000.0,0.00019973,2]
[360262925,1746676233388,-1000.0,0.00019973,2]
[360262926,1746676233399,-1000.0,0.00019973,2]
[360262927,1746676233410,-1000.0,0.00019973,2]
[360262928,1746676233421,-1000.0,0.00019973,2]
[360262929,1746676233431,-1000.0,0.00019973,2]
[360262930,1746676233443,-1000.0,0.00019973,2]
[360262931,1746676233454,-1000.0,0.00019973,2]
[360262932,1746676233464,-1000.0,0.00019973,2]
[360262933,1746676233478,-1000.0,0.00019973,2]
[360262934,1746676233489,-1000.0,0.00019973,2]
[360262935,1746676233500,-1000.0,0.00019973,2]
[360262936,1746676233511,-227.0,0.00019973,2]
[360262937,1746676233521,-165.0,0.00019973,2]
[360262938,1746676233532,-222.09535392,0.00019973,2]
[360262939,1746676233546,-77.50174232,0.00019973,2]
[360262940,1746676233557,-434.0,0.00019973,2]
[360262941,1746676233568,-71.84225768,0.00019973,2]
[360262942,1746676233580,-428.15774232,0.00019973,2]
[360262943,1746676233591,-500.0,0.00019973,2]
[360262944,1746676233601,-189.11654,0.00019983,2]
[360262945,1746676233612,-564.59339388,0.00019985,2]
[360262946,1746676233621,-283.80621555,0.00019985,2]
[360262947,1746676233635,-166.19378445,0.00019985,2]
[360262948,1746676233645,-450.0,0.00019985,2]
[360262949,1746676233656,-450.0,0.00019985,2]
[360262950,1746676233666,-450.0,0.00019985,2]
[360262951,1746676233677,-450.0,0.00019985,2]
[360262952,1746676233687,-522.94713556,0.00019985,2]
[360262953,1746676233697,-509.82,0.00019985,2]
[360262954,1746676233707,-328.44734021,0.00019985,2]
[360262955,1746676233717,-305.01662437,0.00019985,2]
[360262956,1746676233727,-568.50303606,0.00019985,2]
[360262957,1746676233738,-450.0,0.00019985,2]
[360262958,1746676233747,-450.0,0.00019985,2]
[360262959,1746676233758,-450.0,0.00019985,2]
[360262960,1746676233768,-169.07209535,0.00019985,2]
[360262961,1746676233781,-280.92790465,0.00019985,2]
[360262962,1746676233792,-450.0,0.00019985,2]
[360262963,1746676233801,-497.30748789,0.00019985,2]
[360262964,1746676233811,-450.0,0.00019985,2]
[360262965,1746676233821,-450.0,0.00019985,2]
[360262966,1746676233830,-450.0,0.00019985,2]
[360262967,1746676233843,-450.0,0.00019985,2]
[360262968,1746676233853,-450.0,0.00019985,2]
[360262969,1746676233863,-450.0,0.00019985,2]
[360262970,1746676233873,-428.47688154,0.00019985,2]
[360262971,1746676233883,-450.0,0.00019985,2]
[360262972,1746676233893,-450.0,0.00019985,2]
[360262973,1746676233903,-450.0,0.00019985,2]
[360262974,1746676233913,-450.0,0.00019985,2]
[360262975,1746676233925,-450.0,0.00019985,2]
[360262976,1746676233937,-450.0,0.00019985,2]
[360262977,1746676233947,-389.22044254,0.00019985,2]
[360262978,1746676233958,-450.0,0.00019985,2]
[360262979,1746676233969,-507.54,0.00019985,2]
[360262980,1746676233979,-450.0,0.00019985,2]
[360262981,1746676233989,-450.0,0.00019985,2]
[360262982,1746676233999,-450.0,0.00019985,2]
[360262983,1746676234010,-450.0,0.00019985,2]
[360262984,1746676234020,-450.0,0.00019985,2]
[360262985,1746676234031,-460.70251876,0.00019985,2]
[360262986,1746676234041,-450.0,0.00019985,2]
[360262987,1746676234051,-450.0,0.00019985,2]
[360262988,1746676234062,-450.0,0.00019985,2]
[360262989,1746676234071,-372.81993184,0.00019985,2]
[360262990,1746676234081,-450.0,0.00019985,2]
[360262991,1746676234090,-73.95613018,0.00019985,2]
[360262992,1746676234103,-376.04386982,0.00019985,2]
[360262993,1746676234113,-450.0,0.00019985,2]
[360262994,1746676234123,-450.0,0.00019985,2]
[360262995,1746676234133,-721.0,0.00019985,2]
[360262996,1746676234142,-450.0,0.00019985,2]
[360262997,1746676234152,-553.01955028,0.00019985,2]
[360262998,1746676234162,-450.0,0.00019985,2]
[360262999,1746676234172,-450.0,0.00019985,2]
[360263000,1746676234182,-450.0,0.00019985,2]
[360263001,1746676234192,-347.36701092,0.00019985,2]
[360263002,1746676234202,-450.0,0.00019985,2]
[360263003,1746676234213,-450.0,0.00019985,2]
[360263004,1746676234223,-450.0,0.00019985,2]
[360263005,1746676234233,-450.0,0.00019985,2]
[360263006,1746676234244,-450.0,0.00019985,2]
[360263007,1746676234253,-450.0,0.00019985,2]
[360263008,1746676234263,-321.86295264,0.00019985,2]
[360263009,1746676234277,-128.13704736,0.00019985,2]
[360263010,1746676234287,-329.2464977,0.00019985,2]
[360263011,1746676234299,-244.12769001,0.00019985,2]
[360263012,1746676234308,-450.0,0.00019985,2]
[360263013,1746676234318,-450.0,0.00019985,2]
[360263014,1746676234327,-450.0,0.00019985,2]
[360263015,1746676234337,-599.760351,0.00019985,2]
[360263016,1746676234347,-450.0,0.00019985,2]
[360263017,1746676234357,-450.0,0.00019985,2]
[360263018,1746676234367,-450.0,0.00019985,2]
[360263019,1746676234377,-450.0,0.00019985,2]
[360263020,1746676234387,-450.0,0.00019985,2]
[360263021,1746676234396,-450.0,0.00019985,2]
[360263022,1746676234406,-450.0,0.00019985,2]
[360263023,1746676234416,-450.0,0.00019985,2]
[360263024,1746676234426,-474.63321317,0.00019985,2]
[360263025,1746676234436,-465.96047305,0.00019985,2]
[360263026,1746676234446,-450.0,0.00019985,2]
[360263027,1746676234456,-500.44722011,0.00019985,2]
[360263028,1746676234466,-450.0,0.00019985,2]
[360263029,1746676234476,-482.6828575,0.00019985,2]
[360263030,1746676234486,-450.0,0.00019985,2]
[360263031,1746676234496,-164.7986031,0.00019985,2]
[360263032,1746676234506,-450.0,0.00019985,2]
[360263033,1746676234516,-450.0,0.00019985,2]
[360263034,1746676234526,-469.29618244,0.00019985,2]
[360263035,1746676234537,-450.0,0.00019985,2]
[360263036,1746676234547,-210.0,0.00019985,2]
[360263037,1746676234558,-450.0,0.00019985,2]
[360263038,1746676234569,-480.68348991,0.00019985,2]
[360263039,1746676234579,-450.0,0.00019985,2]
[360263040,1746676234589,-487.38300921,0.00019985,2]
[360263041,1746676234599,-450.0,0.00019985,2]
[360263042,1746676234609,-450.0,0.00019985,2]
[360263043,1746676234620,-450.0,0.00019985,2]
[360263044,1746676234630,-450.0,0.00019985,2]
[360263045,1746676234640,-450.0,0.00019985,2]
[360263046,1746676234650,-218.62457192,0.00019985,2]
[360263047,1746676234660,-347.31030474,0.00019985,2]
[360263048,1746676234673,-102.68969526,0.00019985,2]
[360263049,1746676234683,-511.97735446,0.00019985,2]
[360263050,1746676234693,-2245.23098099,0.00019985,2]
[360263051,1746676234704,-176.25901901,0.00019985,2]
[360263052,1746676234714,-500.69221957,0.00019985,2]
[360263053,1746676234724,-500.0,0.00019985,2]
[360263054,1746676234734,-450.0,0.00019985,2]
[360263055,1746676234744,-450.0,0.00019985,2]
[360263056,1746676234754,-485.74,0.00019985,2]
[360263057,1746676234763,-450.0,0.00019985,2]
[360263058,1746676234773,-572.46713865,0.00019985,2]
[360263059,1746676234783,-450.0,0.00019985,2]
[360263060,1746676234793,-450.0,0.00019985,2]
[360263061,1746676234803,-450.0,0.00019985,2]
[360263062,1746676234813,-450.0,0.00019985,2]
[360263063,1746676234823,-450.0,0.00019985,2]
[360263064,1746676234833,-474.03414677,0.00019985,2]
[360263065,1746676234845,-149.88510918,0.00019985,2]
[360263067,1746676238023,-371.55425372,0.00019899,2]
[360263068,1746676238130,-145.2934949,0.00019899,2]
[360263069,1746676238141,-450.0,0.00019899,2]
[360263070,1746676238151,-369.70229081,0.00019985,2]
[360263071,1746676238160,-450.0,0.00019985,2]
[360263072,1746676238170,-442.1662242,0.00019985,2]
[360263073,1746676238179,-465.47296475,0.00019985,2]
[360263074,1746676238189,-450.0,0.00019985,2]
[360263075,1746676238199,-17042.91184377,0.00019986,2]
[360263076,1746676238290,-359.5,0.00019986,2]
[360263081,1746676240226,-450.0,0.00019985,2]
[360263082,1746676240236,-1043.95377767,0.00019985,2]
[360263083,1746676240246,-39140.22986723,0.00019986,2]
[360263084,1746676240256,-3335.6012716,0.00019986,2]
[360263085,1746676240265,-4026.6248741,0.00019986,2]
[360263086,1746676240275,-2176.40829,0.00019986,2]
[360263087,1746676240286,-201.1,0.0001999,2]
[360263088,1746676240295,-450.0,0.00019997,2]
[360263089,1746676240305,-552.53185318,0.00019997,2]
[360263090,1746676240315,-388.1,0.00019997,2]
[360263091,1746676240325,-470.0,0.00019997,2]
[360263092,1746676240335,-450.0,0.00019997,2]
[360263093,1746676240345,-477.3589215,0.00019997,2]
[360263094,1746676240355,-485.34677431,0.00019997,2]
[360263095,1746676240365,-170.48226082,0.00019997,2]
[360263096,1746676240375,-412.81,0.00019997,2]
[360263097,1746676240386,-459.29235506,0.00019997,2]
[360263098,1746676240395,-204.37686867,0.00019998,2]
[360263099,1746676240405,-504.2245636,0.00019999,2]
[360263100,1746676240415,-246.76,0.00019999,2]
[360263101,1746676240425,-818.438,0.00019999,2]
[360263102,1746676240435,-2497.69,0.00019999,2]
[360263103,1746676240445,-2497.69,0.00019999,2]
[360263104,1746676240455,-2497.69,0.00019999,2]
[360263105,1746676240465,-2497.69,0.00019999,2]
[360263106,1746676240476,-2497.79057971,0.00019999,2]
[360263107,1746676240486,-1828.0,0.00019999,2]
[360263108,1746676240495,-450.0,0.00019999,2]
[360263109,1746676240505,-450.0,0.00019999,2]
[360263110,1746676240515,-450.0,0.00019999,2]
[360263111,1746676240525,-450.0,0.00019999,2]
[360263112,1746676240535,-507.54,0.00019999,2]
[360263113,1746676240548,-507.54,0.00019999,2]
[360263114,1746676240558,-507.54,0.00019999,2]
[360263115,1746676240568,-507.54,0.00019999,2]
[360263116,1746676240577,-507.54,0.00019999,2]
[360263117,1746676240587,-507.54,0.00019999,2]
[360263118,1746676240597,-507.54,0.00019999,2]
[360263119,1746676240607,-507.54,0.00019999,2]
[360263120,1746676240618,-507.54,0.00019999,2]
[360263121,1746676240628,-507.54,0.00019999,2]
[360263122,1746676240639,-507.54,0.00019999,2]
[360263123,1746676240649,-507.54,0.00019999,2]
[360263124,1746676240660,-507.54,0.00019999,2]
[360263125,1746676240671,-507.54,0.00019999,2]
[360263126,1746676240681,-507.54,0.00019999,2]
[360263127,1746676240691,-507.54,0.00019999,2]
[360263128,1746676240701,-507.54,0.00019999,2]
[360263130,1746676240711,-507.54,0.00019999,2]
[360263132,1746676240722,-507.54,0.00019999,2]
[360263133,1746676240732,-507.54,0.00019999,2]
[360263135,1746676240742,-507.54,0.00019999,2]
[360263137,1746676240752,-507.54,0.00019999,2]
[360263139,1746676240762,-507.67334996,0.00019999,2]
[360263142,1746676240772,-450.0,0.00019999,2]
[360263144,1746676240783,-450.0,0.00019999,2]
[360263146,1746676240793,-450.0,0.00019999,2]
[360263148,1746676240802,-450.0,0.00019999,2]